[Event "82nd Brazilian-ch 2015"]
[Site "Rio de Janeiro"]
[Date "2016.01.09"]
[Round "1"]
[White "Choma, Ernani Francisco"]
[Black "Santiago, Yago De Moura"]
[Result "1-0"]
[ECO "A04"]
[WhiteElo "2383"]
[BlackElo "2422"]
[PlyCount "69"]
[EventDate "2016.??.??"]
[EventCountry "BRA"]
[TimeControl "5400+30"]

1. Nf3 g6 2. d4 Bg7 3. c4 Nf6 4. b4 O-O 5. Bb2 d5 6. e3 b6 7. Nc3 c5 8. dxc5
bxc5 9. Nxd5 Nxd5 10. Bxg7 Nxe3 11. fxe3 Kxg7 12. Qxd8 Rxd8 13. b5 Nd7 14. a4
a5 15. Nd2 Nb6 16. Be2 Be6 17. Rf1 f5 18. Rf2 Bg8 19. Bf1 e5 20. g3 e4 21. h3
Be6 22. Be2 h5 23. h4 Kh6 24. Rh2 Rd6 25. Bf1 Nd7 26. Nb3 Ne5 27. Rc2 Rad8 28.
Nxa5 Ng4 29. Nb7 Nxe3 30. Rcc1 Nxf1 31. Kxf1 f4 32. Nxd6 Bh3+ 33. Ke1 Rxd6 34.
gxf4 e3 35. Ke2 1-0

[Event "82nd Brazilian-ch 2015"]
[Site "Rio de Janeiro"]
[Date "2016.01.09"]
[Round "1"]
[White "Leitao, Rafael Duailibe"]
[Black "Teixeira, Ricardo da Silva"]
[Result "1-0"]
[ECO "A91"]
[WhiteElo "2633"]
[BlackElo "2234"]
[PlyCount "71"]
[EventDate "2016.??.??"]
[EventCountry "BRA"]
[TimeControl "5400+30"]

1. d4 {[%emt 0:00:00]} e6 {[%emt 0:00:00]} 2. c4 {[%emt 0:00:00]} f5 {[%emt 0:
00:00]} 3. g3 {[%emt 0:00:18]} Nf6 {[%emt 0:00:13]} 4. Bg2 {[%emt 0:00:07]} Be7
{[%emt 0:00:15]} 5. Nc3 {[%emt 0:00:23]} O-O {[%emt 0:00:13]} 6. Nf3 {[%emt 0:
00:22]} d6 {[%emt 0:00:13]} 7. O-O {[%emt 0:00:13]} a5 {[%emt 0:00:06]} 8. Re1
{[%emt 0:06:28]} Ne4 {[%emt 0:02:16]} 9. Qc2 {[%emt 0:00:29]} d5 {[%emt 0:00:
33]} 10. Ne5 {[%emt 0:01:49]} c6 {[%emt 0:07:49]} 11. Nxe4 {[%emt 0:28:02]}
fxe4 {[%emt 0:10:58]} 12. f3 {[%emt 0:01:07]} Nd7 {[%emt 0:07:57]} 13. Nxd7 {
[%emt 0:01:03]} Bxd7 {[%emt 0:02:14]} 14. fxe4 {[%emt 0:00:41]} dxc4 {[%emt 0:
01:27]} 15. Qxc4 {[%emt 0:00:56]} b5 {[%emt 0:02:45]} 16. Qd3 {[%emt 0:07:48]}
c5 {[%emt 0:05:34]} 17. Bf4 {[%emt 0:14:21]} c4 {[%emt 0:10:08]} 18. Qe3 {
[%emt 0:00:24]} Qb6 {[%emt 0:04:00]} 19. h4 {[%emt 0:01:59]} Rac8 {[%emt 0:05:
06]} 20. Rac1 {[%emt 0:00:09]} b4 {[%emt 0:03:49]} 21. h5 {[%emt 0:01:13]} a4 {
[%emt 0:14:17]} 22. h6 {[%emt 0:00:26]} g6 {[%emt 0:00:26]} 23. Be5 {[%emt 0:
01:05]} b3 {[%emt 0:11:32]} 24. a3 {[%emt 0:10:10]} Bxa3 {[%emt 0:05:01]} 25.
bxa3 {[%emt 0:00:15]} b2 {[%emt 0:00:04]} 26. Rc3 {[%emt 0:01:12]} b1=Q {
[%emt 0:00:38]} 27. Rxb1 {[%emt 0:00:04]} Qxb1+ {[%emt 0:00:03]} 28. Kh2 {
[%emt 0:00:08]} Qe1 {[%emt 0:02:23]} 29. Bf3 {[%emt 0:01:32]} Rf7 {[%emt 0:01:
30]} 30. Kg2 {[%emt 0:03:53]} Qb1 {[%emt 0:00:47]} 31. Bd6 {[%emt 0:07:22]} Qb2
{[%emt 0:00:39]} 32. g4 {[%emt 0:00:52]} Be8 {[%emt 0:00:33]} 33. g5 {[%emt 0:
02:42]} Rb7 {[%emt 0:00:52]} 34. Bg4 {[%emt 0:00:48]} Bd7 {[%emt 0:00:47]} 35.
Qf2 {[%emt 0:03:12]} e5 {[%emt 0:01:37]} 36. Rf3 1-0

[Event "82nd Brazilian-ch 2015"]
[Site "Rio de Janeiro"]
[Date "2016.01.09"]
[Round "1"]
[White "Mekhitarian, Krikor Sevag"]
[Black "Barbosa, Evandro Amorim"]
[Result "1/2-1/2"]
[ECO "C11"]
[WhiteElo "2555"]
[BlackElo "2461"]
[PlyCount "81"]
[EventDate "2016.??.??"]
[EventCountry "BRA"]
[TimeControl "5400+30"]

1. e4 {[%emt 0:00:00]} e6 {[%emt 0:00:08]} 2. d4 {[%emt 0:00:00]} d5 {[%emt 0:
00:06]} 3. Nc3 {[%emt 0:00:00]} Nf6 {[%emt 0:00:16]} 4. e5 {[%emt 0:00:00]}
Nfd7 {[%emt 0:00:08]} 5. f4 {[%emt 0:00:01]} c5 {[%emt 0:00:08]} 6. Nf3 {
[%emt 0:00:02]} Nc6 {[%emt 0:00:06]} 7. Be3 {[%emt 0:00:09]} Be7 {[%emt 0:00:
44]} 8. Qd2 {[%emt 0:05:25]} a6 {[%emt 0:01:05]} 9. dxc5 {[%emt 0:14:33]} Nxc5
{[%emt 0:00:20]} 10. O-O-O {[%emt 0:00:15]} Qa5 {[%emt 0:01:04]} 11. Kb1 {
[%emt 0:04:52]} b5 {[%emt 0:01:01]} 12. Ne2 {[%emt 0:20:36]} b4 {[%emt 0:00:24]
} 13. Ned4 {[%emt 0:01:17]} Ne4 {[%emt 0:00:45]} 14. Qe1 {[%emt 0:00:26]} Nxd4
{[%emt 0:00:13]} 15. Nxd4 {[%emt 0:02:29]} Bd7 {[%emt 0:07:18]} 16. Bd3 {
[%emt 0:01:02]} O-O {[%emt 0:09:44]} 17. Bxe4 {[%emt 0:08:37]} dxe4 {[%emt 0:
00:13]} 18. Nf5 {[%emt 0:00:17]} exf5 {[%emt 0:03:00]} 19. Rxd7 {[%emt 0:00:09]
} Rfe8 {[%emt 0:02:42]} 20. Qe2 {[%emt 0:05:13]} Rad8 {[%emt 0:02:49]} 21. Rhd1
{[%emt 0:01:15]} Qa4 {[%emt 0:06:28]} 22. Qd2 {[%emt 0:31:17]} Kf8 {[%emt 0:06:
44]} 23. Bb6 {[%emt 0:02:38]} Rxd7 {[%emt 0:00:28]} 24. Qxd7 {[%emt 0:00:02]}
Qxd7 {[%emt 0:00:15]} 25. Rxd7 {[%emt 0:00:02]} Rb8 {[%emt 0:00:50]} 26. Ba7 {
[%emt 0:01:42]} Rd8 {[%emt 0:01:52]} 27. Rxd8+ {[%emt 0:00:09]} Bxd8 {[%emt 0:
00:02]} 28. Kc1 {[%emt 0:00:32]} Ke8 {[%emt 0:00:57]} 29. Kd2 {[%emt 0:00:03]}
Kd7 {[%emt 0:01:00]} 30. c4 {[%emt 0:00:14]} bxc3+ {[%emt 0:00:37]} 31. Kxc3 {
[%emt 0:00:25]} Kc6 {[%emt 0:00:07]} 32. b4 {[%emt 0:01:36]} Bb6 {[%emt 0:08:
40]} 33. Bxb6 {[%emt 0:00:09]} Kxb6 {[%emt 0:00:05]} 34. a4 {[%emt 0:00:02]}
Kc6 {[%emt 0:00:09]} 35. Kd4 {[%emt 0:00:21]} g6 {[%emt 0:00:13]} 36. h3 {
[%emt 0:00:36]} h5 {[%emt 0:00:13]} 37. g3 {[%emt 0:00:42]} Kb6 {[%emt 0:00:18]
} 38. Kc4 {[%emt 0:00:51]} Kc6 {[%emt 0:00:06]} 39. Kd4 {[%emt 0:00:03]} Kb6 {
[%emt 0:00:04]} 40. Kc4 {[%emt 0:00:05]} Kc6 41. Kd4 {Kd5+} 1/2-1/2

[Event "82nd Brazilian-ch 2015"]
[Site "Rio de Janeiro"]
[Date "2016.01.10"]
[Round "2"]
[White "Barbosa, Evandro Amorim"]
[Black "Leitao, Rafael Duailibe"]
[Result "1/2-1/2"]
[ECO "B90"]
[WhiteElo "2461"]
[BlackElo "2633"]
[PlyCount "41"]
[EventDate "2016.??.??"]
[EventCountry "BRA"]
[TimeControl "5400+30"]

1. e4 {[%emt 0:02:12]} c5 {[%emt 0:00:22]} 2. Nf3 {[%emt 0:00:08]} d6 {[%emt 0:
00:26]} 3. d4 {[%emt 0:00:07]} cxd4 {[%emt 0:00:06]} 4. Nxd4 {[%emt 0:00:04]}
Nf6 {[%emt 0:00:09]} 5. Nc3 {[%emt 0:00:04]} a6 {[%emt 0:00:05]} 6. a4 {
[%emt 0:00:36]} e5 {[%emt 0:09:17]} 7. Nf3 {[%emt 0:00:21]} Be7 {[%emt 0:01:21]
} 8. Bc4 {[%emt 0:00:08]} Be6 {[%emt 0:03:41]} 9. Qe2 {[%emt 0:00:18]} Nc6 {
[%emt 0:02:21]} 10. O-O {[%emt 0:00:39]} Rc8 {[%emt 0:02:50]} 11. Bb3 {[%emt 0:
05:27]} Na5 {[%emt 0:26:29]} 12. Ba2 {[%emt 0:00:30]} O-O {[%emt 0:04:58]} 13.
Rd1 {[%emt 0:00:10]} Qc7 {[%emt 0:02:07]} 14. Bg5 {[%emt 0:00:19]} Nc4 {
[%emt 0:02:32]} 15. Bxf6 {[%emt 0:00:20]} Bxf6 {[%emt 0:00:05]} 16. Nd5 {
[%emt 0:00:08]} Bxd5 {[%emt 0:00:08]} 17. Rxd5 {[%emt 0:00:03]} Nb6 {[%emt 0:
09:54]} 18. Rd2 {[%emt 0:03:19]} Nc4 {[%emt 0:00:34]} 19. Rd5 {[%emt 0:01:05]}
Nb6 {[%emt 0:00:07]} 20. Rd2 {[%emt 0:00:19]} Nc4 {[%emt 0:00:07]} 21. Rd5
1/2-1/2

[Event "82nd Brazilian-ch 2015"]
[Site "Rio de Janeiro"]
[Date "2016.01.10"]
[Round "2"]
[White "Brito, Luismar"]
[Black "Choma, Ernani Francisco"]
[Result "0-1"]
[ECO "B33"]
[WhiteElo "2235"]
[BlackElo "2383"]
[PlyCount "60"]
[EventDate "2016.??.??"]
[EventCountry "BRA"]
[TimeControl "5400+30"]

1. e4 c5 2. Nf3 Nc6 3. d4 cxd4 4. Nxd4 Nf6 5. Nc3 e5 6. Ndb5 d6 7. Bg5 a6 8.
Bxf6 gxf6 9. Na3 b5 10. Nd5 f5 11. c3 Bg7 12. exf5 Bxf5 13. Nc2 O-O 14. Nce3
Be6 15. g4 b4 16. Bg2 bxc3 17. bxc3 Rc8 18. Be4 Ne7 19. c4 Kh8 20. h4 f5 21.
gxf5 Bxf5 22. Nxf5 Nxf5 23. Qd3 Nd4 24. Rh3 Rb8 25. Qd2 Rf7 26. h5 Bf6 27. Rg3
Bh4 28. Rg2 Bxf2+ 29. Kd1 Qh4 30. Qg5 Qxe4 0-1

[Event "82nd Brazilian-ch 2015"]
[Site "Rio de Janeiro"]
[Date "2016.01.10"]
[Round "2"]
[White "Limp, Eduardo Thelio"]
[Black "Macedo, Maximo Iack"]
[Result "1-0"]
[ECO "A48"]
[WhiteElo "2385"]
[BlackElo "2316"]
[PlyCount "103"]
[EventDate "2016.??.??"]
[EventCountry "BRA"]
[TimeControl "5400+30"]

1. Nf3 Nf6 2. d4 g6 3. c3 Bg7 4. Qc2 d5 5. Bf4 O-O 6. Nbd2 b6 7. e3 c5 8. h3
Bb7 9. Be2 Nc6 10. Ne5 Nd7 11. Nxc6 Bxc6 12. Nf3 Re8 13. O-O e6 14. Rad1 Qe7
15. Ne5 Nxe5 16. Bxe5 b5 17. Bxg7 Kxg7 18. f4 a5 19. dxc5 Qxc5 20. Qd2 b4 21.
Rc1 Qb6 22. Qd4+ Qxd4 23. cxd4 Rec8 24. Rc5 Bd7 25. Rfc1 Rxc5 26. dxc5 Bc6 27.
Kf2 h6 28. h4 h5 29. g4 hxg4 30. Bxg4 Rh8 31. Kg3 Kf6 32. Bf3 Ke7 33. Kg4 Rc8
34. Kg5 Rh8 35. Rh1 Rc8 36. Rc1 Rh8 37. Rc2 Rb8 38. b3 Rc8 39. Be2 Ra8 40. a4
bxa3 41. Ra2 a4 42. Rxa3 axb3 43. Rxb3 Ra5 44. Rc3 Ra2 45. Bf3 Rf2 46. Bd1 Rg2+
47. Kh6 Kf6 48. h5 Rh2 49. Bg4 gxh5 50. Bxh5 Rh3 51. Ra3 Kf5 52. e4+ 1-0

[Event "82nd Brazilian-ch 2015"]
[Site "Rio de Janeiro"]
[Date "2016.01.10"]
[Round "2"]
[White "Reis, Renan do Carmo"]
[Black "Santiago, Yago De Moura"]
[Result "1-0"]
[ECO "C00"]
[WhiteElo "2254"]
[BlackElo "2422"]
[PlyCount "65"]
[EventDate "2016.??.??"]
[EventCountry "BRA"]
[TimeControl "5400+30"]

1. e4 {[%emt 0:00:00]} e6 {[%emt 0:01:42]} 2. d3 {[%emt 0:00:22]} d5 {[%emt 0:
00:31]} 3. Nd2 {[%emt 0:00:05]} Nf6 {[%emt 0:00:09]} 4. Ngf3 {[%emt 0:00:04]}
c5 {[%emt 0:00:13]} 5. g3 {[%emt 0:00:09]} g6 {[%emt 0:00:19]} 6. Bg2 {[%emt 0:
00:19]} Bg7 {[%emt 0:00:08]} 7. exd5 {[%emt 0:00:33]} Nxd5 {[%emt 0:00:48]} 8.
h4 {[%emt 0:01:18]} h6 {[%emt 0:01:41]} 9. O-O {[%emt 0:05:18]} Nc6 {[%emt 0:
03:59]} 10. Nb3 {[%emt 0:01:23]} b6 {[%emt 0:04:22]} 11. d4 {[%emt 0:00:35]}
Ba6 {[%emt 0:05:10]} 12. Re1 {[%emt 0:01:07]} c4 {[%emt 0:00:51]} 13. Nbd2 {
[%emt 0:01:03]} Rc8 {[%emt 0:19:02]} 14. c3 {[%emt 0:01:13]} O-O {[%emt 0:00:
56]} 15. Qa4 {[%emt 0:08:20]} Na5 {[%emt 0:01:42]} 16. Ne5 {[%emt 0:01:30]} Re8
{[%emt 0:04:21]} 17. Ndf3 {[%emt 0:03:04]} b5 {[%emt 0:00:35]} 18. Qc2 {
[%emt 0:03:25]} Ne7 {[%emt 0:12:15]} 19. h5 {[%emt 0:21:29]} gxh5 {[%emt 0:01:
33]} 20. Bxh6 {[%emt 0:02:07]} Nf5 {[%emt 0:01:23]} 21. Bxg7 {[%emt 0:02:50]}
Kxg7 {[%emt 0:00:15]} 22. Bh3 {[%emt 0:01:48]} Nh6 {[%emt 0:09:27]} 23. Re4 {
[%emt 0:01:47]} Nc6 {[%emt 0:04:56]} 24. Nxc6 {[%emt 0:09:01]} Rxc6 {[%emt 0:
00:09]} 25. Rh4 {[%emt 0:00:33]} Bb7 {[%emt 0:14:15]} 26. Rxh5 {[%emt 0:03:40]}
Rc8 {[%emt 0:00:52]} 27. Bg2 {[%emt 0:05:24]} Bd5 {[%emt 0:04:23]} 28. Ne5 {
[%emt 0:04:05]} Bxg2 {[%emt 0:02:23]} 29. Rxh6 {[%emt 0:00:48]} Kxh6 {[%emt 0:
00:18]} 30. Nxf7+ {[%emt 0:00:06]} Kg7 {[%emt 0:00:05]} 31. Nxd8 {[%emt 0:00:
08]} Bd5 {[%emt 0:00:04]} 32. Re1 {[%emt 0:08:25]} Rcxd8 {[%emt 0:01:19]} 33.
Re5 1-0

[Event "82nd Brazilian-ch 2015"]
[Site "Rio de Janeiro"]
[Date "2016.01.10"]
[Round "2"]
[White "Santos, Marcus Vinicius M"]
[Black "Mekhitarian, Krikor Sevag"]
[Result "1/2-1/2"]
[ECO "E46"]
[WhiteElo "2367"]
[BlackElo "2555"]
[PlyCount "77"]
[EventDate "2016.??.??"]
[EventCountry "BRA"]
[TimeControl "5400+30"]

1. d4 {[%emt 0:00:00]} Nf6 {[%emt 0:01:34]} 2. c4 {[%emt 0:00:00]} e6 {[%emt 0:
00:02]} 3. Nc3 {[%emt 0:00:06]} Bb4 {[%emt 0:00:02]} 4. e3 {[%emt 0:00:36]} O-O
{[%emt 0:00:19]} 5. Nge2 {[%emt 0:00:15]} Re8 {[%emt 0:00:45]} 6. a3 {[%emt 0:
00:50]} Bf8 {[%emt 0:00:03]} 7. Ng3 {[%emt 0:03:07]} d5 {[%emt 0:00:21]} 8. Be2
{[%emt 0:02:14]} b6 {[%emt 0:00:06]} 9. O-O {[%emt 0:01:18]} Bb7 {[%emt 0:00:
17]} 10. b4 {[%emt 0:02:17]} Nbd7 {[%emt 0:00:39]} 11. Bb2 {[%emt 0:02:12]}
dxc4 {[%emt 0:09:57]} 12. Bxc4 {[%emt 0:01:51]} c5 {[%emt 0:00:08]} 13. dxc5 {
[%emt 0:11:33]} bxc5 {[%emt 0:00:23]} 14. bxc5 {[%emt 0:05:22]} Nxc5 {[%emt 0:
00:34]} 15. Qe2 {[%emt 0:00:38]} Qa5 {[%emt 0:30:23]} 16. Nb5 {[%emt 0:05:29]}
Be7 {[%emt 0:28:17]} 17. Be5 {[%emt 0:07:28]} Ncd7 {[%emt 0:04:50]} 18. Bc7 {
[%emt 0:04:44]} Qa4 {[%emt 0:01:04]} 19. Nd4 {[%emt 0:00:24]} Nc5 {[%emt 0:06:
31]} 20. Bb5 {[%emt 0:02:09]} Ba6 {[%emt 0:00:02]} 21. Bxa4 {[%emt 0:00:47]}
Bxe2 {[%emt 0:00:04]} 22. Bxe8 {[%emt 0:00:52]} Bxf1 {[%emt 0:00:07]} 23. Bxf7+
{[%emt 0:20:30]} Kxf7 {[%emt 0:00:04]} 24. Nxf1 {[%emt 0:00:06]} Nd5 {[%emt 0:
04:51]} 25. Bg3 {[%emt 0:00:41]} Bf6 {[%emt 0:03:59]} 26. Rc1 {[%emt 0:07:44]}
Bxd4 {[%emt 0:02:09]} 27. exd4 {[%emt 0:00:07]} Nb3 {[%emt 0:03:13]} 28. Rc4 {
[%emt 0:00:40]} Rd8 {[%emt 0:00:59]} 29. Be5 {[%emt 0:00:31]} Rd7 {[%emt 0:00:
01]} 30. Ne3 {[%emt 0:01:19]} Nb6 {[%emt 0:00:11]} 31. Rb4 {[%emt 0:10:40]} Na5
{[%emt 0:00:03]} 32. Rb5 {[%emt 0:02:03]} Nc6 {[%emt 0:00:42]} 33. Nc2 {
[%emt 0:00:26]} Nc4 {[%emt 0:02:06]} 34. f4 {[%emt 0:01:04]} N4xe5 {[%emt 0:00:
47]} 35. fxe5 {[%emt 0:00:11]} Nxd4 {[%emt 0:00:08]} 36. Nxd4 {[%emt 0:00:27]}
Rxd4 {[%emt 0:00:02]} 37. Ra5 {[%emt 0:02:45]} Rd5 {[%emt 0:00:51]} 38. Rxa7+ {
[%emt 0:00:11]} Kg6 {[%emt 0:00:01]} 39. a4 {[%emt 0:00:26]} 1/2-1/2

[Event "82nd Brazilian-ch 2015"]
[Site "Rio de Janeiro"]
[Date "2016.01.10"]
[Round "2"]
[White "Teixeira, Ricardo da Silva"]
[Black "Souza, Rafael Cabral de"]
[Result "0-1"]
[ECO "A46"]
[WhiteElo "2234"]
[BlackElo "2159"]
[PlyCount "136"]
[EventDate "2016.??.??"]
[EventCountry "BRA"]
[TimeControl "5400+30"]

1. d4 Nf6 2. Nf3 e6 3. g3 b6 4. Bg2 Bb7 5. O-O Be7 6. c4 c5 7. Nc3 cxd4 8. Qxd4
d6 9. Rd1 a6 10. Bg5 Nbd7 11. Qd2 Qc7 12. Bf4 e5 13. Bg5 h6 14. Bxf6 Nxf6 15.
Rac1 O-O 16. Nh4 Bxg2 17. Nxg2 Qxc4 18. Ne3 Qe6 19. Ncd5 Nxd5 20. Nxd5 Bg5 21.
e3 Bd8 22. Rc6 b5 23. Qb4 Be7 24. Nxe7+ Qxe7 25. Qxd6 Qg5 26. h4 Qg4 27. Rd2
Qa4 28. a3 Qa5 29. Rd5 Rae8 30. Rxe5 Qe1+ 31. Kg2 Rd8 32. Qc5 Qb1 33. Qc1 Qxc1
34. Rxc1 Rd2 35. b4 Rd3 36. Ra1 Rb3 37. Rd5 Ra8 38. Rd7 h5 39. Ra2 g6 40. Kf3
Kg7 41. Ke2 Kf6 42. Rd3 Rb1 43. Rc2 a5 44. bxa5 Rxa5 45. Rc6+ Kf5 46. Kf3 b4
47. Rb6 g5 48. hxg5 Kxg5 49. Rxb4 Ra1 50. a4 R1xa4 51. Rxa4 Rxa4 52. Rd5+ f5
53. Rb5 Rc4 54. Ra5 Rb4 55. Re5 Kf6 56. Ra5 Kg5 57. Ra8 h4 58. Rd8 hxg3 59.
Kxg3 Rg4+ 60. Kf3 Ra4 61. Rd6 Rb4 62. Rd4 Rb1 63. Ra4 Rc1 64. Kg3 Rg1+ 65. Kh2
Rb1 66. Kg2 Rb2 67. Kg3 Rb6 68. f4+ Kg6 0-1

[Event "82nd Brazilian-ch 2015"]
[Site "Rio de Janeiro"]
[Date "2016.01.11"]
[Round "3"]
[White "Choma, Ernani Francisco"]
[Black "Teixeira, Ricardo da Silva"]
[Result "1/2-1/2"]
[ECO "A96"]
[WhiteElo "2383"]
[BlackElo "2234"]
[PlyCount "96"]
[EventDate "2016.??.??"]
[EventCountry "BRA"]
[TimeControl "5400+30"]

1. Nf3 e6 2. c4 f5 3. g3 Nf6 4. Bg2 Be7 5. O-O O-O 6. d4 d6 7. Nc3 a5 8. b3 Ne4
9. Bb2 Nxc3 10. Bxc3 Nd7 11. Qe1 a4 12. e4 f4 13. e5 d5 14. Qd2 g5 15. gxf4
Rxf4 16. Ne1 axb3 17. cxd5 Nb6 18. Nd3 Rh4 19. dxe6 Bxe6 20. f4 gxf4 21. axb3
Rxa1 22. Rxa1 Nd5 23. Bf3 Kh8 24. Nc5 Qg8+ 25. Qg2 Bxc5 26. Bxd5 Bxd5 27. Qxg8+
Kxg8 28. dxc5 Kf7 29. Ra4 Ke6 30. Ra8 Rg4+ 31. Kf1 f3 32. Rf8 h5 33. Rf6+ Ke7
34. Rh6 Bxb3 35. Rxh5 Rg2 36. Rh4 Ke6 37. Rf4 Bd5 38. h4 Rc2 39. Rf6+ Ke7 40.
Bd4 Bc4+ 41. Ke1 Re2+ 42. Kd1 Bb3+ 43. Kc1 Bd5 44. Rf4 Rh2 45. Kd1 Kd7 46. Ke1
Kc6 47. Bf2 Kd7 48. Rf6 c6 1/2-1/2

[Event "82nd Brazilian-ch 2015"]
[Site "Rio de Janeiro"]
[Date "2016.01.11"]
[Round "3"]
[White "Leitao, Rafael Duailibe"]
[Black "Santos, Marcus Vinicius M"]
[Result "1/2-1/2"]
[ECO "A41"]
[WhiteElo "2633"]
[BlackElo "2367"]
[PlyCount "86"]
[EventDate "2016.??.??"]
[EventCountry "BRA"]
[TimeControl "5400+30"]

1. d4 {[%emt 0:00:00]} g6 {[%emt 0:03:19]} 2. c4 {[%emt 0:00:07]} Bg7 {[%emt 0:
00:15]} 3. Nc3 {[%emt 0:00:22]} d6 {[%emt 0:00:13]} 4. g3 {[%emt 0:01:16]} Nd7
{[%emt 0:00:43]} 5. Bg2 {[%emt 0:00:52]} e5 {[%emt 0:00:35]} 6. Nf3 {[%emt 0:
00:23]} Ne7 {[%emt 0:00:30]} 7. O-O {[%emt 0:00:22]} O-O {[%emt 0:00:14]} 8. e3
{[%emt 0:02:29]} Nc6 {[%emt 0:07:41]} 9. b3 {[%emt 0:07:17]} Re8 {[%emt 0:03:
31]} 10. Bb2 {[%emt 0:31:48]} e4 {[%emt 0:07:29]} 11. Ne1 {[%emt 0:00:35]} Nf6
{[%emt 0:04:00]} 12. Nc2 {[%emt 0:05:58]} Bg4 {[%emt 0:06:20]} 13. f3 {[%emt 0:
03:44]} exf3 {[%emt 0:00:47]} 14. Bxf3 {[%emt 0:00:03]} h5 {[%emt 0:02:48]} 15.
Bxg4 {[%emt 0:01:47]} Nxg4 {[%emt 0:06:53]} 16. e4 {[%emt 0:06:19]} Qd7 {
[%emt 0:08:49]} 17. Qd3 {[%emt 0:01:58]} Nf6 {[%emt 0:03:53]} 18. Rae1 {
[%emt 0:07:24]} Qh3 {[%emt 0:03:24]} 19. Nd5 {[%emt 0:04:59]} Nxd5 {[%emt 0:03:
02]} 20. cxd5 {[%emt 0:00:07]} Ne7 {[%emt 0:00:40]} 21. Qf3 {[%emt 0:01:50]}
Rf8 {[%emt 0:00:53]} 22. Ne3 {[%emt 0:01:03]} c6 {[%emt 0:03:44]} 23. dxc6 {
[%emt 0:00:26]} bxc6 {[%emt 0:00:23]} 24. e5 {[%emt 0:01:14]} dxe5 {[%emt 0:05:
14]} 25. dxe5 {[%emt 0:00:05]} Qe6 {[%emt 0:01:09]} 26. Nc4 {[%emt 0:00:08]}
Nf5 {[%emt 0:00:43]} 27. Ba3 {[%emt 0:02:21]} Rfd8 {[%emt 0:01:18]} 28. Nd6 {
[%emt 0:02:35]} Nxd6 {[%emt 0:08:33]} 29. exd6 {[%emt 0:00:19]} Qd5 {[%emt 0:
00:11]} 30. Qxd5 {[%emt 0:09:18]} cxd5 {[%emt 0:00:06]} 31. Re7 {[%emt 0:01:00]
} f5 {[%emt 0:03:54]} 32. Rd1 {[%emt 0:04:04]} Bf8 {[%emt 0:03:17]} 33. Re5 {
[%emt 0:00:22]} Bxd6 {[%emt 0:01:46]} 34. Bxd6 {[%emt 0:02:45]} Rxd6 {[%emt 0:
00:09]} 35. Rexd5 {[%emt 0:00:07]} Rxd5 {[%emt 0:03:12]} 36. Rxd5 {[%emt 0:00:
04]} a5 {[%emt 0:00:18]} 37. a4 {[%emt 0:01:28]} Kf7 {[%emt 0:00:45]} 38. Rb5 {
[%emt 0:00:10]} Kf6 {[%emt 0:00:33]} 39. Kf2 {[%emt 0:00:21]} Ra6 {[%emt 0:01:
58]} 40. h4 {[%emt 0:01:09]} g5 {[%emt 0:01:42]} 41. hxg5+ {[%emt 0:01:14]}
Kxg5 {[%emt 0:00:06]} 42. Kf3 {[%emt 0:00:32]} Rc6 {[%emt 0:00:42]} 43. Rxa5 {
[%emt 0:00:22]} Rc3+ {[%emt 0:00:06]} 1/2-1/2

[Event "82nd Brazilian-ch 2015"]
[Site "Rio de Janeiro"]
[Date "2016.01.11"]
[Round "3"]
[White "Macedo, Maximo Iack"]
[Black "Reis, Renan do Carmo"]
[Result "1-0"]
[ECO "D10"]
[WhiteElo "2316"]
[BlackElo "2254"]
[PlyCount "75"]
[EventDate "2016.??.??"]
[EventCountry "BRA"]
[TimeControl "5400+30"]

1. d4 {[%emt 0:07:18]} d5 {[%emt 0:00:00]} 2. c4 {[%emt 0:00:09]} c6 {[%emt 0:
00:45]} 3. Nc3 {[%emt 0:00:16]} dxc4 {[%emt 0:00:23]} 4. e3 {[%emt 0:00:30]} b5
{[%emt 0:07:44]} 5. a4 {[%emt 0:05:40]} b4 {[%emt 0:00:10]} 6. Ne4 {[%emt 0:00:
10]} Qd5 {[%emt 0:00:21]} 7. Ng3 {[%emt 0:00:08]} e5 {[%emt 0:03:30]} 8. Nf3 {
[%emt 0:09:02]} exd4 {[%emt 0:03:50]} 9. exd4 {[%emt 0:25:06]} Nf6 {[%emt 0:10:
45]} 10. Be2 {[%emt 0:08:49]} Bd6 {[%emt 0:04:31]} 11. Nf1 {[%emt 0:03:30]} Ba6
{[%emt 0:10:57]} 12. Ne3 {[%emt 0:00:14]} Qe6 {[%emt 0:01:19]} 13. Ng5 {
[%emt 0:04:41]} Qc8 {[%emt 0:11:12]} 14. Nxc4 {[%emt 0:01:45]} Bxc4 {[%emt 0:
00:26]} 15. Bxc4 {[%emt 0:00:08]} O-O {[%emt 0:00:14]} 16. O-O {[%emt 0:05:41]}
Qc7 {[%emt 0:00:54]} 17. h3 {[%emt 0:03:54]} Nbd7 {[%emt 0:00:57]} 18. Qc2 {
[%emt 0:07:17]} c5 {[%emt 0:06:36]} 19. Be3 {[%emt 0:04:52]} Rac8 {[%emt 0:01:
34]} 20. b3 {[%emt 0:05:39]} Bf4 {[%emt 0:05:08]} 21. Qf5 {[%emt 0:04:09]} Bxe3
{[%emt 0:04:48]} 22. fxe3 {[%emt 0:00:02]} h6 {[%emt 0:00:35]} 23. Nf3 {
[%emt 0:01:41]} Nb6 {[%emt 0:01:47]} 24. Ba6 {[%emt 0:00:09]} Rce8 {[%emt 0:01:
22]} 25. Qxc5 {[%emt 0:00:43]} Qxc5 {[%emt 0:00:37]} 26. dxc5 {[%emt 0:00:01]}
Nbd5 {[%emt 0:00:20]} 27. Rfe1 {[%emt 0:00:36]} Nxe3 {[%emt 0:03:14]} 28. c6 {
[%emt 0:00:59]} Nfd5 {[%emt 0:01:04]} 29. Nd4 {[%emt 0:00:22]} Nc7 {[%emt 0:01:
50]} 30. Bd3 {[%emt 0:00:41]} Rd8 {[%emt 0:04:12]} 31. Rxe3 {[%emt 0:00:31]}
Rxd4 {[%emt 0:00:02]} 32. Bf5 {[%emt 0:00:14]} Re8 {[%emt 0:00:49]} 33. Rxe8+ {
[%emt 0:00:38]} Nxe8 {[%emt 0:00:01]} 34. Re1 {[%emt 0:00:43]} Nc7 {[%emt 0:09:
45]} 35. Re7 {[%emt 0:00:08]} g6 {[%emt 0:00:12]} 36. Bg4 {[%emt 0:01:00]} h5 {
[%emt 0:03:54]} 37. Bf3 {[%emt 0:00:20]} Ne6 {[%emt 0:01:59]} 38. Rxe6 {
[%emt 0:00:15]} 1-0

[Event "82nd Brazilian-ch 2015"]
[Site "Rio de Janeiro"]
[Date "2016.01.11"]
[Round "3"]
[White "Mekhitarian, Krikor Sevag"]
[Black "Limp, Eduardo Thelio"]
[Result "1-0"]
[ECO "B27"]
[WhiteElo "2555"]
[BlackElo "2385"]
[PlyCount "51"]
[EventDate "2016.??.??"]
[EventCountry "BRA"]
[TimeControl "5400+30"]

1. e4 {[%emt 0:02:17]} c5 {[%emt 0:00:00]} 2. Nf3 {[%emt 0:00:03]} b6 {[%emt 0:
00:03]} 3. d4 {[%emt 0:00:03]} cxd4 {[%emt 0:00:06]} 4. Nxd4 {[%emt 0:00:02]}
Bb7 {[%emt 0:00:08]} 5. Nc3 {[%emt 0:00:02]} Nf6 {[%emt 0:00:31]} 6. Bg5 {
[%emt 0:00:12]} Nc6 {[%emt 0:00:40]} 7. Nf5 {[%emt 0:02:16]} Rc8 {[%emt 0:00:
09]} 8. Qd2 {[%emt 0:04:42]} e6 {[%emt 0:01:29]} 9. Nd6+ {[%emt 0:00:24]} Bxd6
{[%emt 0:00:10]} 10. Qxd6 {[%emt 0:00:02]} Qe7 {[%emt 0:03:00]} 11. O-O-O {
[%emt 0:03:08]} Qxd6 {[%emt 0:02:56]} 12. Rxd6 {[%emt 0:00:12]} Ke7 {[%emt 0:
02:18]} 13. Rxc6 {[%emt 0:09:58]} Rxc6 {[%emt 0:08:04]} 14. e5 {[%emt 0:00:06]}
Rhc8 {[%emt 0:00:08]} 15. f3 {[%emt 0:10:52]} Rc5 {[%emt 0:03:34]} 16. exf6+ {
[%emt 0:00:29]} gxf6 {[%emt 0:00:08]} 17. Be3 {[%emt 0:01:09]} Ra5 {[%emt 0:02:
06]} 18. a3 {[%emt 0:08:56]} d5 {[%emt 0:03:11]} 19. Bd3 {[%emt 0:12:25]} h5 {
[%emt 0:02:18]} 20. Re1 {[%emt 0:01:11]} e5 {[%emt 0:04:22]} 21. Bf2 {[%emt 0:
16:24]} Kf8 {[%emt 0:04:00]} 22. Bh4 {[%emt 0:01:15]} Kg7 {[%emt 0:01:21]} 23.
g4 {[%emt 0:00:44]} hxg4 {[%emt 0:03:23]} 24. Rg1 {[%emt 0:00:17]} Rc6 {
[%emt 0:00:09]} 25. Rxg4+ {[%emt 0:02:49]} Kf8 {[%emt 0:00:20]} 26. Be1 {
[%emt 0:00:24]} 1-0